Cogmind - Beta 15 @@@ ROGUE MODE // 2025.06.05 @ 16:04:12 Player: cingulata Result: Self-destructed Performance ------------- Evolutions (2) 1000 Regions Visited (7) 1400 Robots Destroyed (78) 390 Value Destroyed (1718) 1718 Prototype IDs (28) 560 Alien Tech Used (0) 0 Bonus (391) 391 TOTAL SCORE: 5459 Bonus ------- Follower Combat Kills 91 Aligned with FarCom 300 Cogmind --------- Core Integrity 419/550 Matter 28/300 Energy 140/140 System Corruption 0% Temperature Cool (0) Movement Treading (156) Location -8/Materials Parts ------- > --- POWER (1) -------- Light Deuterium Engine > --- PROPULSION (4) --- Light Treads Light Treads Light Treads Advanced Treads > --- UTILITY (4) ------ High-capacity Storage Unit Machine Analyzer Experimental Sensor Array ECM Suite > --- WEAPON (2) ------- Heavy Particle Cannon > --- INVENTORY (20) --- Light Deuterium Engine Light Angular Momentum Engine Light Treads Light Treads VTOL Module Improved VTOL Module Improved Heat Sink Structural Scanner Cloak of Protection Light Armor Plating Hardened Light Armor Plating Shield Generator Hacking Suite Heavy Assault Rifle Shotgun Shotgun Minigun Gauss Rifle Flak Cannon Peak State ------------ > --- POWER ------------ Light Angular Momentum Engine > --- PROPULSION ------- Light Treads Light Treads Light Treads Light Treads > --- UTILITY ---------- High-capacity Storage Unit Experimental Sensor Array Cloak of Protection Light Armor Plating > --- WEAPON ----------- Shotgun Shotgun > --- INVENTORY -------- Improved Ion Engine Reinforced Ion Engine Light Nuclear Core VTOL Module Improved Heat Sink Large Storage Unit High-capacity Storage Unit Machine Analyzer ECM Suite Hardened Light Armor Plating Hardened Medium Armor Plating Shield Generator EM Shotgun Light Assault Rifle Heavy Assault Rifle Autogun Grenade Launcher Mining Laser [Rating: 35] Favorites ----------- Power Light Nuclear Core Engine Light Ion Engine Power Core Light Nuclear Core Propulsion Light Treads Treads Light Treads Wheel Armored Wheel Utility High-capacity Storage Unit Device Seismic Detector Storage High-capacity Storage Unit Processor Machine Analyzer Hackware Authchip [R/Combat] Protection Light Armor Plating Weapon Shotgun Energy Gun EM Shotgun Energy Cannon Heavy Particle Cannon Ballistic Gun Shotgun Ballistic Cannon Flak Cannon Launcher Grenade Launcher Special Weapon Mining Laser Build | -11 -10 -10 -9 -9 -9 -8 -8 ------- Run | Yrd Mat Min Mat Min Exi Min Mat Slots Evolved 4 | . . . 2 . . . 2 Power . | . . . . . . . . Propulsion 2 | . . . 1 . . . 1 Utility 2 | . . . 1 . . . 1 Weapon . | . . . . . . . . Parts Attached 61 | 7 13 6 14 2 2 . 17 Power 9 | 1 1 1 2 . . . 4 Engine 8 | 1 1 1 1 . . . 4 Core 1 | . . . 1 . . . . Reactor . | . . . . . . . . Propulsion 10 | 2 2 . 3 . . . 3 Treads 8 | 2 . . 3 . . . 3 Leg . | . . . . . . . . Wheel 2 | . 2 . . . . . . Hover . | . . . . . . . . Flight . | . . . . . . . . Utility 19 | 2 4 3 2 1 2 . 5 Device 7 | 1 . 1 . . 2 . 3 Storage 6 | 1 4 1 . . . . . Processor 2 | . . . 1 . . . 1 Hackware 1 | . . 1 . . . . . Protection 3 | . . . 1 1 . . 1 Artifact . | . . . . . . . . Weapon 23 | 2 6 2 7 1 . . 5 Energy Gun 7 | 1 3 . 2 . . . 1 Energy Cannon 1 | . . . . . . . 1 Ballistic Gun 10 | 1 3 1 3 . . . 2 Ballistic Cannon 2 | . . . 1 . . . 1 Launcher 1 | . . 1 . . . . . Special Weapon 2 | . . . 1 1 . . . Impact Weapon . | . . . . . . . . Slashing Weapon . | . . . . . . . . Piercing Weapon . | . . . . . . . . Special Melee Weapon . | . . . . . . . . Unidentified Prototypes 1 | . . . . . 1 . . Parts Lost 9 | . . 1 5 . . . 3 Power 1 | . . . 1 . . . . Propulsion 1 | . . . 1 . . . . Utility . | . . . . . . . . Weapon 7 | . . 1 3 . . . 3 Highest Loss Streak 2 | . . 1 2 . . . 1 To Critical Strikes . | . . . . . . . . Average Backups 16 | 2 11 15 15 16 18 19 19 Power 1 | . 1 1 . 2 3 3 2 Propulsion 2 | 1 2 2 2 2 2 2 2 Utility 5 | . . 2 4 5 7 8 7 Weapon 7 | . 6 9 7 5 6 6 6 Tool/Special . | . . . . . . . . Unused Backups 11 | . 3 . 3 . . . 5 Power 2 | . 1 . . . . . 1 Propulsion 4 | . 2 . . . . . 2 Utility 2 | . . . . . . . 2 Weapon 3 | . . . 3 . . . . Tool/Special . | . . . . . . . . Average Slot Usage (%) 98 | . 99 100 93 99 100 100 99 Engine 6 | . 14 14 3 . . . 9 Core 3 | . . . 2 11 11 11 . Treads 25 | . 7 . 27 33 33 33 35 Wheel 6 | . 19 28 5 . . . . Device 9 | . 11 13 3 11 11 11 9 Storage 12 | . 16 14 18 11 11 11 9 Processor 3 | . . . 6 . . . 8 Protection 6 | . . . 4 11 11 11 8 Energy Gun 4 | . 7 14 5 . . . 2 Ballistic Gun 15 | . 20 13 14 20 22 22 7 Special Weapon 1 | . . . 1 . . . 3 Peak Build Rating 35 | 7 13 16 16 17 24 25 35 Average Rating 19 | 4 11 12 13 16 18 24 30 On Entrance 14 | . 7 13 13 14 16 24 25 Naked Turns . | . . . . . . . . Heaviest Build 90 | 13 90 71 76 57 62 55 67 Greatest Support 82 | 40 40 24 60 60 60 60 82 Greatest Overweight (x) 5 | . 3 2 5 . 1 . . Average Overweight (x) . | . 1 1 1 . . . . Largest Inventory Capacity 25 | 8 25 20 20 20 20 20 20 Average Capacity 19 | 6 16 19 20 20 20 20 20 Most Carried 20 | 5 16 20 20 18 20 20 20 Average Carried 17 | 3 11 16 17 16 18 19 19 Final Capacity 20 | 8 20 20 20 20 20 20 20 Final Carried 20 | 4 16 20 14 18 19 20 19 Class Distribution -------------------- 40% | Mutant 28% | Scavenger-Mutant 24% | Scavenger-Skirmisher 6% | Skirmisher Dominant Class ---------------- Mutant | -10/Materials Mutant | -10/Mines Mutant | -9/Materials Scavenger-Mutant | -9/Mines Scavenger-Mutant | -9/Exiles Scavenger-Skirmisher | -8/Mines Scavenger-Skirmisher | -8/Materials Resources | -11 -10 -10 -9 -9 -9 -8 -8 ----------- Run | Yrd Mat Min Mat Min Exi Min Mat Matter Collected 2089 | 272 327 226 725 212 . 38 289 Remotely . | . . . . . . . . Salvage Created 2093 | 50 447 290 855 63 . 7 381 Parts 170 | 5 33 27 62 10 . 2 31 Haulers Intercepted 3 | . 2 . 1 . . . . Recyclers Shooed 3 | . . . 1 . . 2 . Parts Field Recycled . | . . . . . . . . Retrieved Matter . | . . . . . . . . Parts Self-Destructed . | . . . . . . . . Prevented . | . . . . . . . . Kills | -11 -10 -10 -9 -9 -9 -8 -8 ------- Run | Yrd Mat Min Mat Min Exi Min Mat Combat Hostiles Destroyed 54 | . 8 11 19 8 . . 8 Guns 37 | . 8 4 18 4 . . 3 Cannons 4 | . . . . . . . 4 AOE 13 | . . 7 1 4 . . 1 Classes Destroyed 12 | 1 6 1 3 . . . 1 Worker 4 | . 2 1 . . . . 1 Builder 5 | . 1 . 1 . . . 3 Tunneler 4 | 2 . 1 . . . 1 . Hauler 3 | . 2 . 1 . . . . Recycler 2 | . . 1 . . . . 1 Operator 2 | . . . 1 . . . 1 Watcher 4 | . 3 . 1 . . . . Swarmer 24 | . 4 9 . 8 . . 3 Grunt 20 | . 4 2 12 . . . 2 Duelist 1 | . . . 1 . . . . Sentry 8 | . . . 6 . . . 2 Hunter 1 | . . . . . . . 1 Best Kill Streak 7 | 2 4 7 4 5 . 1 6 Combat Bots Only 6 | . 4 6 4 5 . . 3 Max Kills in Single Turn 3 | 1 1 3 1 3 . 1 3 Gunslinging . | . . . . . . . . Exploded 3 | . . 3 1 3 . . 1 Melee . | . . . . . . . . Uniques/NPCs Destroyed . | . . . . . . . . Combat | -11 -10 -10 -9 -9 -9 -8 -8 -------- Run | Yrd Mat Min Mat Min Exi Min Mat Hostile Shots Fired 279 | . 31 26 110 15 . . 97 Missed 83 | . 10 10 30 5 . . 28 Hits 196 | . 21 16 80 10 . . 69 Melee 5 | . . . 5 . . . . Projectile 191 | . 21 16 75 10 . . 69 Critical Strikes 8 | . 1 1 3 . . . 3 Damage Taken 2633 | . 257 211 1168 83 . . 914 Core 377 | . 67 63 116 . . . 131 Absorbed by Shields 72 | . . . . . . . 72 Regen/Repaired (Parts) 105 | . . . 105 . . . . Core Remaining (%) 73 | 100 . 48 . . . 71 . Volleys Fired 205 | 4 33 11 85 9 . 1 62 Largest 2 | 2 2 2 2 2 . 2 2 Hottest 100 | 70 68 75 100 100 . 46 100 Shots Fired 334 | 8 66 20 144 15 . 2 79 Gun 269 | 8 66 16 133 10 . 2 34 Cannon 21 | . . . . . . . 21 Launcher 15 | . . 4 3 2 . . 6 Special 29 | . . . 8 3 . . 18 Kinetic 222 | 4 48 7 115 10 . 2 36 Thermal 44 | 4 . . 8 3 . . 29 Explosive 15 | . . 4 3 2 . . 6 Electromagnetic 53 | . 18 9 18 . . . 8 Robot Hit Streak 10 | 2 6 10 10 3 . 1 9 Robot Miss Streak 8 | 2 8 3 5 2 . 2 6 Penetration Max . | . . . . . . . . Secondary Targets 3 | . . . 3 . . . . Max Gunslinging Chain 1 | . . . 1 . . . . Shots Hit Robots 202 | 4 44 11 97 8 . 2 36 Core Hits 124 | 2 22 18 44 8 . 1 29 Critical Kills 1 | . 1 . . . . . . Critical Parts Destroyed 1 | . . . 1 . . . . Critical Strikes 3 | . 1 . 2 . . . . Destroy 3 | . 1 . 2 . . . . Melee Attacks . | . . . . . . . . Impact . | . . . . . . . . Slashing . | . . . . . . . . Piercing . | . . . . . . . . Sneak Attacks . | . . . . . . . . Combat Hostiles . | . . . . . . . . Follow-up Attacks . | . . . . . . . . Damage Inflicted 4588 | 52 686 619 1658 460 . 68 1045 Guns 2651 | 52 557 164 1489 80 . 22 287 Cannons 326 | . . . . . . . 326 Explosions 1157 | . . 328 151 344 . . 334 Melee . | . . . . . . . . Ramming 454 | . 129 127 18 36 . 46 98 Kinetic 2256 | 26 417 74 1351 80 . 22 286 Thermal 306 | 26 . . . . . . 280 Explosive 895 | . . 328 151 344 . . 72 Electromagnetic 677 | . 140 90 138 . . . 309 Impact . | . . . . . . . . Slashing . | . . . . . . . . Piercing . | . . . . . . . . Highest Corruption 2 | . 1 2 . . . . . Average Corruption 1 | . 1 1 . . . . . Corruption Purged . | . . . . . . . . Corruption Blocked . | . . . . . . . . Effects 16 | . 5 11 . . . . . Message Errors 1 | . 1 . . . . . . Matter Fused 3 | . . 3 . . . . . Heat Flow Errors 6 | . 2 4 . . . . . Energy Discharges 5 | . 2 3 . . . . . Data Loss (major) 1 | . . 1 . . . . . Overload Shots . | . . . . . . . . Overflow Damage 50 | . 12 27 . 7 . . 4 Projectiles 4 | . . . . . . . 4 Explosions 33 | . . 27 . 6 . . . Melee 13 | . 12 . . 1 . . . Knockbacks 7 | . . . . . . . 7 Impact 1 | . . . . . . . 1 Kinetic 5 | . . . . . . . 5 Secondary 1 | . . . . . . . 1 Self-Inflicted Damage 166 | . 63 61 3 . . . 39 Shots 3 | . . . . . . . 3 Rammed 46 | . 8 13 5 3 . 5 12 Targets Rammed 49 | . 8 13 6 3 . 6 13 Kicked . | . . . . . . . . Crushed 3 | . . . 1 . . 1 1 Highest Temperature 251 | 27 251 217 108 108 . . 162 Average Temperature 39 | 12 57 62 35 56 . . 26 Received Heat Transfer 864 | . 48 24 492 . . . 300 Siege Activations . | . . . . . . . . Martial Activations . | . . . . . . . . Shielding Activations . | . . . . . . . . Robots Disrupted 1 | . . . . . . . 1 Combat Hostiles . | . . . . . . . . Robots Corrupted 1 | . 1 . . . . . . Combat Hostiles . | . . . . . . . . Parts Fried 3 | . 1 . . . . . 2 Impact Corruptions 2 | . 1 . . 1 . . . Robots Melted . | . . . . . . . . Combat Hostiles . | . . . . . . . . Parts Melted 1 | . . . . . . . 1 Heat Transferred 457 | 74 . . . . . . 383 Parts Sabotaged . | . . . . . . . . Parts Stolen . | . . . . . . . . Parts Stripped . | . . . . . . . . Power Chain Reactions 2 | . . . . . . . 2 Alert | -11 -10 -10 -9 -9 -9 -8 -8 ------- Run | Yrd Mat Min Mat Min Exi Min Mat Maximum Alert Level 1 | . . 1 . 1 . . . Low Security (%) 97 | 100 100 97 100 83 . 100 100 Level 1 2 | . . 2 . 16 . . . Level 2 . | . . . . . . . . Level 3 . | . . . . . . . . Level 4 . | . . . . . . . . Level 5 . | . . . . . . . . High Security . | . . . . . . . . Max Security . | . . . . . . . . Peak Influence 249 | 5 83 214 179 249 . 5 190 Initial 22 | . . 22 . . . . 1 Average 50 | . 16 81 43 79 . . 73 Influence Increases 2072 | 10 255 302 573 346 . 5 581 Destroy 0b10 Robot/C 1180 | . 160 220 380 260 . . 160 Destroy 0b10 Robot/NC 120 | 10 40 15 20 . . 5 30 Destroy Leader 274 | . 30 40 114 40 . . 50 Allied During Kill 13 | . . . . 13 . . . Successful Hack 71 | . 25 . 36 . . . 10 Disable Machine 150 | . . . . 15 . . 135 Destroy Structure 99 | . . 27 8 18 . . 46 Partial Spotted 45 | . . . . . . . 45 Lose Combat Pursuer 120 | . . . 15 . . . 105 Influence Decreases 1896 | 10 196 361 573 201 145 . 410 Entered New Map 186 | . . 37 . . 145 . 4 Time Decay 1479 | 10 196 314 382 201 . . 376 Lost Part 81 | . . 10 41 . . . 30 Purge Threat 150 | . . . 150 . . . . Squads Dispatched 9 | . 1 . 2 . . . 6 Investigation 1 | . . . 1 . . . . Extermination . | . . . . . . . . Reinforcement 8 | . 1 . 1 . . . 6 Assault . | . . . . . . . . Garrison . | . . . . . . . . Intercept . | . . . . . . . . Searches Triggered . | . . . . . . . . Construction Impeded 1 | . . . . . . . 1 Haulers Reinforced . | . . . . . . . . Active Scanning Responses . | . . . . . . . . Cargo Convoy Interrupts . | . . . . . . . . Stealth | -11 -10 -10 -9 -9 -9 -8 -8 --------- Run | Yrd Mat Min Mat Min Exi Min Mat Distress Signals 11 | . . . 2 1 . . 8 Communications Jammed . | . . . . . . . . Distress Signals . | . . . . . . . . Times Spotted 117 | . 19 11 38 9 . . 40 Peak Tracking Total 12 | . 4 6 6 5 . . 12 Tactical Retreats 11 | . . . 1 . . . 10 Traps | -11 -10 -10 -9 -9 -9 -8 -8 ------- Run | Yrd Mat Min Mat Min Exi Min Mat Traps Triggered 3 | . 2 . 1 . . . . Indirectly . | . . . . . . . . Trap Hack Attempts . | . . . . . . . . Triggered . | . . . . . . . . Disarmed . | . . . . . . . . Reprogrammed . | . . . . . . . . Reused . | . . . . . . . . Traps Extracted . | . . . . . . . . Installed 1 | . . 1 . . . . . Triggered . | . . . . . . . . Most Traps Carried 4 | . . 4 3 . . . . Machines | -11 -10 -10 -9 -9 -9 -8 -8 ---------- Run | Yrd Mat Min Mat Min Exi Min Mat Machines Disabled 10 | . . . . 1 . . 9 Max in Single Turn 5 | . . . . . . . 5 Machines Repaired . | . . . . . . . . Machines Dismantled . | . . . . . . . . Machines Sabotaged . | . . . . . . . . Overloaded Fab Kills . | . . . . . . . . Hacking | -11 -10 -10 -9 -9 -9 -8 -8 --------- Run | Yrd Mat Min Mat Min Exi Min Mat Machines Accessed 22 | . 7 1 8 . 2 . 4 Terminals 17 | . 6 1 6 . . . 4 Fabricators . | . . . . . . . . Repair Stations 1 | . . . 1 . . . . Recycling Units 1 | . 1 . . . . . . Scanalyzers 1 | . . . 1 . . . . Garrison Access . | . . . . . . . . Total Hacks 56 | . 17 3 26 . 2 . 8 Successful 35 | . 9 1 18 . 2 . 5 Failed 21 | . 8 2 8 . . . 3 Catastrophic 2 | . 1 . . . . . 1 Database Lockouts . | . . . . . . . . Manual 23 | . 6 3 10 . 1 . 3 Terminals 46 | . 15 3 20 . . . 8 Fabricators . | . . . . . . . . Repair Stations 4 | . . . 4 . . . . Recycling Units 2 | . 2 . . . . . . Scanalyzers 2 | . . . 2 . . . . Garrison Access . | . . . . . . . . Terminal Hacks 19 | . 4 . 10 . 2 . 3 Record 1 | . . . . . 1 . . Robot Analysis 1 | . 1 . . . . . . Prototype ID Bank 2 | . . . 2 . . . . Branch Access Points 2 | . . . 1 . . . 1 Terminal Index 1 | . . . 1 . . . . Unreport Threat 1 | . . . 1 . . . . Locate Traps 3 | . 1 . 1 . . . 1 Dispatch Records 1 | . . . 1 . . . . Hauler Manifests 4 | . 2 . 1 . . . 1 Registered Prototypes 1 | . . . 1 . . . . Zone Layout 1 | . . . 1 . . . . Proto ID Catalog 1 | . . . . . 1 . . Fabricator Hacks . | . . . . . . . . Repair Station Hacks 3 | . . . 3 . . . . Scan Component 2 | . . . 2 . . . . Repair 1 | . . . 1 . . . . Recycling Unit Hacks 2 | . 2 . . . . . . Report Inventory 1 | . 1 . . . . . . Retrieve Components 1 | . 1 . . . . . . Scanalyzer 2 | . . . 2 . . . . Insert Component 1 | . . . 1 . . . . Analyze 1 | . . . 1 . . . . Garrison Access Hacks . | . . . . . . . . Unauthorized Hacks 9 | . 3 1 3 . . . 2 Terminals 9 | . 3 1 3 . . . 2 Assimilate 1 | . . . 1 . . . . Botnet 8 | . 3 1 2 . . . 2 Fabricators . | . . . . . . . . Repair Stations . | . . . . . . . . Recycling Units . | . . . . . . . . Scanalyzers . | . . . . . . . . Garrison Access . | . . . . . . . . Data Cores Recovered . | . . . . . . . . Used . | . . . . . . . . Hacking Detections 15 | . 6 1 4 . . . 4 Full Trace Events 2 | . 1 . . . . . 1 Feedback Events . | . . . . . . . . Feedback Blocked . | . . . . . . . . Robot Schematics Acquired . | . . . . . . . . Robots Built . | . . . . . . . . Authchips . | . . . . . . . . Time . | . . . . . . . . Total Robot Build Rating . | . . . . . . . . Part Schematics Acquired 1 | . . . 1 . . . . Parts Built . | . . . . . . . . Authchips . | . . . . . . . . Time . | . . . . . . . . Total Part Build Rating . | . . . . . . . . Parts Repaired 1 | . . . 1 . . . . Time 26 | . . . 26 . . . . Parts Recycled . | . . . . . . . . Recycled Matter . | . . . . . . . . Retrieved Matter . | . . . . . . . . Retrieved Components 10 | . 10 . . . . . . Parts Scanalyzed 1 | . . . 1 . . . . Part Schematics Acquired 1 | . . . 1 . . . . Parts Damaged . | . . . . . . . . Bothacking | -11 -10 -10 -9 -9 -9 -8 -8 ------------ Run | Yrd Mat Min Mat Min Exi Min Mat Used RIF Installer . | . . . . . . . . Robots Hacked . | . . . . . . . . Non-combat . | . . . . . . . . Combat . | . . . . . . . . Robot Hacks Applied . | . . . . . . . . Relay Couplers Released . | . . . . . . . . Fabnet Peak Effective % . | . . . . . . . . Robots Rewired . | . . . . . . . . Allies Hacked . | . . . . . . . . Hacks Repelled . | . . . . . . . . Allies | -11 -10 -10 -9 -9 -9 -8 -8 -------- Run | Yrd Mat Min Mat Min Exi Min Mat Total Allies 3 | . . . 1 2 . . . Largest Group 1 | . . . 1 1 1 . . Highest-Rated Group 31 | . . . 10 31 31 . . Highest-Rated Ally 31 | . . . 10 31 31 . . Total Orders . | . . . . . . . . Ally Attacks 14 | . . . . 14 . . . Total Damage 188 | . . . . 188 . . . Kills 5 | . . . . 5 . . . Allies Corrupted . | . . . . . . . . Allies Melted . | . . . . . . . . Intel | -11 -10 -10 -9 -9 -9 -8 -8 ------- Run | Yrd Mat Min Mat Min Exi Min Mat Active Infowar (turns) 6401 | 2 757 870 462 747 556 998 2009 Sensors 2580 | . . . . . 137 998 1445 Structural 38 | . . . . . . . 38 Seismic 3216 | 2 757 870 462 747 378 . . Machine Analysis 2003 | . . . . . . . 2003 Cloaking 42 | . . . . . 41 . 1 ECM 499 | . . . . . . . 499 Robot Analysis Total 1 | . 1 . . . . . . Derelict Logs Recovered 3 | . . 1 . 2 . . . Drone Launches . | . . . . . . . . Drone Recoveries . | . . . . . . . . Exploration | -11 -10 -10 -9 -9 -9 -8 -8 ------------- Run | Yrd Mat Min Mat Min Exi Min Mat Turns Passed 7703 | 82 890 902 1510 747 565 998 2009 Spaces Moved 4122 | 37 543 696 569 430 336 600 911 Core 3 | 3 . . . . . . . Treads 2771 | 34 94 . 366 430 336 600 911 Legs . | . . . . . . . . Wheels 1348 | . 449 696 203 . . . . Hover . | . . . . . . . . Flight . | . . . . . . . . Fastest Speed 50 | 50 90 105 105 160 160 160 156 Average Speed 151 | 151 125 117 190 160 163 160 156 Slowest Speed 400 | 160 160 120 400 160 240 160 160 Overloaded Moves . | . . . . . . . . Propulsion Burnouts . | . . . . . . . . Robots Hopped . | . . . . . . . . Potential Cave-ins . | . . . . . . . . Cave-ins Triggered . | . . . . . . . . Exploration Rate (%) 63 | 3 79 96 59 71 72 87 42 Regions Visited 7 Branch Regions 4 Pre-discovered Areas 1 | . . . . . 1 . . Known Exits Taken 1 | . . . 1 . . . . Unknown Exits Taken 6 | 1 1 1 . 1 1 1 . Scrap Searched 3 | . . 1 . 1 . 1 . Spaces Dug 42 | . . . 7 3 . . 32 Terrain Destroyed 118 | . . 34 7 19 . . 58 Melee . | . . . . . . . . Projectile 30 | . . . 7 3 . . 20 AOE 88 | . . 34 . 16 . . 38 Terrain Rammed . | . . . . . . . . Walls Destroyed . | . . . . . . . . Machines Disabled . | . . . . . . . . Actions | -11 -10 -10 -9 -9 -9 -8 -8 --------- Run | Yrd Mat Min Mat Min Exi Min Mat Total 5124 | 52 679 750 830 462 352 634 1365 Wait 526 | . 56 4 106 8 10 23 319 Move 4115 | 36 542 695 568 429 335 599 911 Hop . | . . . . . . . . Pick Up 58 | 5 17 8 10 4 2 3 9 Fast Attach 11 | 6 3 . 2 . . . . Attach 16 | 1 1 1 6 1 1 . 5 Detach 3 | . . . 1 . 1 . 1 Swap 99 | . 11 14 30 8 2 . 34 Drop 41 | . 8 3 16 . 1 2 11 Fire 205 | 4 33 11 85 9 . 1 62 Melee . | . . . . . . . . Ram 21 | . 6 13 2 . . . . Kick . | . . . . . . . . Crush 28 | . 2 . 4 3 . 6 13 Escape Stasis . | . . . . . . . . Rewire . | . . . . . . . . Trap 1 | . . 1 . . . . . Miscellaneous . | . . . . . . . . Route ------- -11/Scrapyard -10/Materials (discovered 4 exits: *Mat x2 / *Min x2) -10/Mines (discovered 2 exits: *Mat x2) -9/Materials (discovered 4 exits: *Mat x2 / *Min x2) -9/Mines (discovered 3 exits: *Mat x2 / *Exi) -9/Exiles (discovered 2 exits: [*Min x2]) -8/Mines -8/Materials (discovered 2 exits: *Fac x2) History --------- Turn | Location | Event 27 | -11/Scrapyard | Discovered new exit (range 15) 83 | -11/Scrapyard | Entered Materials 338 | -10/Materials | Discovered new exit (range 15) 352 | -10/Materials | Build established: Mutant 394 | -10/Materials | Discovered new exit (range 14) 557 | -10/Materials | Discovered new exit (range 10) 814 | -10/Materials | Discovered new exit (range 16) 973 | -10/Materials | Entered Mines 1008 | -10/Mines | Discovered new exit (range 6) 1195 | -10/Mines | Discovered new exit (range 9) 1545 | -10/Mines | Found a hidden stash of uninstalled traps 1664 | -10/Mines | Learned 2 Materials zone layouts 1837 | -10/Mines | Core integrity fell below 50% 1875 | -10/Mines | Entered Materials 1875 | -9/Materials | Evolved 2 slots: Propulsion x1, Utility x1 1876 | -9/Materials | Identified exit to Mines 2784 | -9/Materials | Repaired Lgt. Treads 2849 | -9/Materials | Discovered new exit (range 10) 3287 | -9/Materials | Discovered new exit (range 20) 3385 | -9/Materials | Entered Mines 3388 | -9/Mines | Received a Mining Laser from a helpful Derelict 3394 | -9/Mines | Met a Derelict bent on vengeance 3618 | -9/Mines | Escorted by a lone wolf Derelict 3674 | -9/Mines | Build established: Scavenger-Mutant 3682 | -9/Mines | Found a damaged Exp. Sensor Array with a note attached 3685 | -9/Mines | Found Prototype Device 3824 | -9/Mines | Discovered new exit (range 10) 3906 | -9/Mines | Discovered new exit (range 7) 4047 | -9/Mines | Learned Materials garrison access intel 4124 | -9/Mines | Deemed a non-threat by the Exiles lab entrance 4125 | -9/Mines | Discovered new exit (range 5) 4132 | -9/Mines | Entered Exiles 4132 | -9/Exiles | Accompanied by 1 ally 4156 | -9/Exiles | Discovered new exit (range 15) 4176 | -9/Exiles | Met 8R-AWN 4200 | -9/Exiles | Met EX-HEX 4252 | -9/Exiles | Met EX-BIN 4276 | -9/Exiles | Met EX-DEC 4283 | -9/Exiles | Learned location of Zion (-6) 4448 | -9/Exiles | Aligned with FarCom system 4449 | -9/Exiles | Given EX-Vault access code 4496 | -9/Exiles | Opened EX-Vault 4508 | -9/Exiles | Found Cloak of Protection 4560 | -9/Exiles | Identified Exp. Sensor Array 4571 | -9/Exiles | Warned to stay clear of 0b10 Research branches 4678 | -9/Exiles | Discovered new exit (range 10) 4697 | -9/Exiles | Left Exiles lab with Cloak of Protection 4697 | -9/Exiles | Entered Mines 4999 | -8/Mines | Build established: Scavenger-Skirmisher 5679 | -8/Mines | Discovered new exit (range 6) 5695 | -8/Mines | Entered Materials 5695 | -8/Materials | Evolved 2 slots: Propulsion x1, Utility x1 5696 | -8/Materials | Identified exit to Factory 5697 | -8/Materials | Loaded intel: 1 garrison access location 6606 | -8/Materials | Discovered exit to Factory (range 12) 7704 | -8/Materials | Self-destructed Last Messages --------------- 07630_ U-05 Engineer builds a Wall. 07641_ W-25 Informer sends out distress signal. 07690_ ALERT: Suspicious intruders detected, dispatching Specialist reinforcements to area. 07691_ U-05 Engineer lays Concrete. 07697_ Hadron Collector disabled. 07697_ U-05 Engineer destroyed. 07697_ W-25 Informer sends out distress signal. 07698_ ALERT: Construction progress impeded, dispatching reinforcements to local area. 07699_ >> Machine Analyzer network decryption results: 07699_ Scanalyzer x2 07699_ Slug penetrates Wall. 07699_ Acquired 4 matter. 07699_ U-05 Engineer builds a Wall. 07701_ Critical hit (Burn: +37). 07703_ Grenade Launcher destroyed. 07703_ Penetrated by Slug. 07703_ U-05 Engineer builds a Wall. Map ----- +----------------------------------------------------+ | ?????????????"""?"""????T??????? | | ????????????????????????????????? | | ???????????????""T""?????????????# #???????##### | | ???????????????"""""?????????????# #???????????? | | ?????????????????????????????????# #???????????? | | ??????????????????????????######## #???????????? | | ??????????????????????????# ############# | | ??????????????????????????# / | | ??????????????????????????# #### | | ??????????????????????????# #####/##??# | | ??????????????????????????# #?? ???# | | ??????????????????????????# #?! ] ???# | | ??????????????????????????# ## ???# | | ??????????????????????????# + """??# | | ???????????????????# #### ## """??# | | ???????????????????# ## """??########## | | ???????????????????# w#####+#########???????????? | | ???????????????????# ??# #???????????????? | | ???????????????????# ??# """ *#???????????????? | | ???????????????????# ?# """ =%##????????????""" | | ????????????"""???## ## " "x !##????????????""" | | ????????????"""???# ] u "x ###???????????""" | | ????????????""" # s # #???????????""" | | ???????????? g [ H ss! % # #???????????""" | | ?????????????????g# #s= | # #?????????????? | | ???????????????""?# u @ ! # #????????????? | | ??????????????S""?## x## ##### #????????????? | | ??????????????""???# ??# """""! #????????????? | | ???????????????????????#x ""T""%= ##????????????? | | ?????????????????????? + # #?????????????? | | ????????????????????? # [ # ?????????????? | | ???????????????????? < # ###????????????? | | ???????????????????# ?# """ """ ##??????????????? | | ???????????????????##??# """ """ #???????????????? | | ???????????????????????# """ """ #???????????????? | | ???????????????????????########??????????????????? | | ?????????????????????????????????????????????????? | | ?????????????????????????????????????????????????? | | ?????????????????????????????????????????????????? | | | | | | | | | | | | | | | | | | | | | | | +----------------------------------------------------+ Best States ------------- Heat Dissipation 31 Energy Generation 18 Energy Capacity 265 Matter Stores 300 Matter Capacity 300 Sight Range 16 Robot Scan Range 20 Terrain Scan Density 10 ECM Strength 1 Cloak Strength 5 Armor Coverage 375 Evasion (%) 42 Recoil Reduction 4 Item Schematics ----------------- Autogun | -9/Materials | Scanalyzed Robot Schematics ------------------ None Fabricated ------------ Nothing Repaired ---------- Lgt. Treads | 25% | -9/Materials Alien Tech Used ----------------- None Achievements -------------- None Challenges ------------ None Game ------ Seed MobileDisassembledLance Manual? 0 Play Time 01:17:25 Cumulative 28.2 hours Start 2025.06.05 @ 14:47:21 End 2025.06.05 @ 16:04:12 Sessions 1 Manual Loads 0 Difficulty Rogue Special Mode None Game No. 20 Rogue 20 Adventurer 0 Explorer 0 Win Type - Total 0 Types 0/0/0/0/0/0/0/0/0/0 Lore% 20 Gallery% 18 Achievement% 19 Wizard Run 0 Options --------- Layout 1 ASCII 0 Keyboard 0 Movement Numpad Keybinds 0 Fullscreen 1 Font 32/SmallcapsGlow Map View 50x35 Zoom Use 0% Tactical HUD 1 Map Filters NONE Filters NONE Steam 1 RUN: 3e965bbc-09db-4efe-8d6c-5fa9db4db299